[Event "44th Chess Olympiad Open 2022"]
[Site "Chennai"]
[Date "2022.07.31"]
[Round "3.67"]
[White "Munro, Allan"]
[Black "Nissinen, Niilo Man"]
[Result "1/2-1/2"]
[WhiteElo "2008"]
[BlackElo "1693"]
[Annotator "NA"]
[PlyCount "88"]
[EventDate "2022.??.??"]
[TimeControl "60"]

1. d4 {[%emt 0:00:09]} Nf6 {[%emt 0:00:10]} 2. c4 {[%emt 0:00:13]} g6 {[%emt 0:
00:00]} 3. Nf3 {[%emt 0:00:20]} Bg7 {[%emt 0:00:23]} 4. g3 {[%emt 0:00:23]} O-O
{[%emt 0:01:59]} 5. Bg2 {[%emt 0:00:14]} d5 {[%emt 0:02:08]} 6. O-O {[%emt 0:
00:00]} dxc4 {[%emt 0:04:45]} 7. Nc3 {[%emt 0:04:16]} a6 {[%emt 0:08:49]} 8. a4
{[%emt 0:04:02]} Nc6 {[%emt 0:01:19]} 9. h3 {[%emt 0:01:55]} Na5 {[%emt 0:00:
00]} 10. e4 {[%emt 0:18:28]} Nb3 {[%emt 0:02:51]} 11. Ra3 {[%emt 0:02:14]} Nxc1
{[%emt 0:03:28]} 12. Qxc1 {[%emt 0:00:06]} Rb8 {[%emt 0:03:15]} 13. e5 {
[%emt 0:21:48]} Nd5 {[%emt 0:07:18]} 14. Nxd5 {[%emt 0:05:49]} Qxd5 {[%emt 0:
00:00]} 15. Rc3 {[%emt 0:01:10]} b5 {[%emt 0:00:59]} 16. axb5 {[%emt 0:00:11]}
axb5 {[%emt 0:00:15]} 17. b3 {[%emt 0:00:32]} Ba6 {[%emt 0:05:03]} 18. bxc4 {
[%emt 0:04:18]} bxc4 {[%emt 0:00:13]} 19. Qa3 {[%emt 0:01:13]} Qb5 {[%emt 0:00:
00]} 20. Ra1 {[%emt 0:02:46]} Bb7 {[%emt 0:05:01]} 21. Qxe7 {[%emt 0:01:03]}
Qb2 {[%emt 0:00:56]} 22. Qa3 {[%emt 0:02:22]} Bd5 {[%emt 0:01:02]} 23. Ne1 {
[%emt 0:09:05]} c6 {[%emt 0:05:30]} 24. Qxb2 {[%emt 0:04:40]} Rxb2 {[%emt 0:00:
00]} 25. Rc2 {[%emt 0:00:07]} Rfb8 {[%emt 0:02:45]} 26. Rac1 {[%emt 0:04:03]}
Bf8 {[%emt 0:03:06]} 27. Bf1 {[%emt 0:01:14]} Bh6 {[%emt 0:04:10]} 28. f4 {
[%emt 0:02:27]} R2b3 {[%emt 0:02:31]} 29. Kf2 {[%emt 0:01:06]} g5 {[%emt 0:00:
00]} 30. Bxc4 {[%emt 0:01:14]} gxf4 {[%emt 0:00:40]} 31. g4 {[%emt 0:01:31]}
Bg5 {[%emt 0:15:57]} 32. Bxd5 {[%emt 0:01:43]} cxd5 {[%emt 0:00:06]} 33. Nf3 {
[%emt 0:00:50]} Bd8 {[%emt 0:00:30]} 34. Rc8 {[%emt 0:00:36]} Rb2+ {[%emt 0:00:
00]} 35. R1c2 {[%emt 0:00:27]} Rxc2+ {[%emt 0:00:51]} 36. Rxc2 {[%emt 0:00:06]}
Be7 {[%emt 0:04:16]} 37. Ke2 {[%emt 0:02:24]} Rb3 {[%emt 0:00:12]} 38. h4 {
[%emt 0:00:37]} Kg7 {[%emt 0:00:56]} 39. h5 {[%emt 0:00:47]} h6 {[%emt 0:01:24]
} 40. Ra2 {[%emt 0:02:21]} Rb5 {[%emt 0:03:27]} 41. Rc2 {[%emt 0:30:48]} Rb7 {
[%emt 0:02:18]} 42. Ra2 {[%emt 0:00:00]} Rb5 {[%emt 0:04:48]} 43. Nd2 {[%emt 0:
00:00]} Bd8 {[%emt 0:04:13]} 44. Nf3 {[%emt 0:00:00]} Be7 {[%emt 0:01:48]}
1/2-1/2

[Event "44th Chess Olympiad Open 2022"]
[Site "Chennai"]
[Date "2022.07.31"]
[Round "3.67"]
[White "Kwong, Wing Ki"]
[Black "Winter Atwell, Adrian"]
[Result "1/2-1/2"]
[WhiteElo "1824"]
[BlackElo "2250"]
[Annotator "RC"]
[PlyCount "131"]
[EventDate "2022.??.??"]
[TimeControl "60"]

1. d4 {[%emt 0:00:04]} d5 {[%emt 0:00:20]} 2. c4 {[%emt 0:00:13]} e6 {[%emt 0:
00:00]} 3. Nc3 {[%emt 0:00:14]} Nf6 {[%emt 0:00:31]} 4. Bg5 {[%emt 0:00:13]} c5
{[%emt 0:01:24]} 5. e3 {[%emt 0:01:35]} cxd4 {[%emt 0:01:20]} 6. exd4 {[%emt 0:
00:00]} dxc4 {[%emt 0:04:49]} 7. Bxc4 {[%emt 0:00:34]} Be7 {[%emt 0:00:10]} 8.
Nf3 {[%emt 0:00:33]} O-O {[%emt 0:01:28]} 9. O-O {[%emt 0:00:29]} Nbd7 {
[%emt 0:03:00]} 10. Rc1 {[%emt 0:04:22]} Nb6 {[%emt 0:02:06]} 11. Bd3 {[%emt 0:
00:00]} a6 {[%emt 0:01:59]} 12. Bb1 {[%emt 0:02:18]} h6 {[%emt 0:04:27]} 13.
Bh4 {[%emt 0:01:23]} Nbd5 {[%emt 0:01:29]} 14. a3 {[%emt 0:06:42]} Bd7 {
[%emt 0:01:46]} 15. Ne5 {[%emt 0:03:03]} Be8 {[%emt 0:00:59]} 16. Qf3 {[%emt 0:
00:00]} Nxc3 {[%emt 0:03:09]} 17. bxc3 {[%emt 0:08:21]} Nd5 {[%emt 0:05:12]}
18. Bxe7 {[%emt 0:01:28]} Qxe7 {[%emt 0:00:53]} 19. c4 {[%emt 0:00:22]} Nf6 {
[%emt 0:01:10]} 20. Rfe1 {[%emt 0:01:18]} Qc7 {[%emt 0:02:31]} 21. Qd3 {
[%emt 0:01:53]} g6 {[%emt 0:02:29]} 22. h4 {[%emt 0:08:05]} Rd8 {[%emt 0:01:43]
} 23. Qf3 {[%emt 0:07:36]} Nh7 {[%emt 0:06:36]} 24. Qe3 {[%emt 0:04:55]} Kg7 {
[%emt 0:16:24]} 25. h5 {[%emt 0:03:39]} Qe7 {[%emt 0:03:20]} 26. hxg6 {[%emt 0:
00:00]} fxg6 {[%emt 0:01:51]} 27. f4 {[%emt 0:04:59]} Qh4 {[%emt 0:04:05]} 28.
Rf1 {[%emt 0:03:50]} Nf6 {[%emt 0:01:02]} 29. Rf3 {[%emt 0:04:30]} Ng4 {
[%emt 0:05:14]} 30. Nxg4 {[%emt 0:00:23]} Qxg4 {[%emt 0:00:21]} 31. Rcf1 {
[%emt 0:01:05]} Qh4 {[%emt 0:02:31]} 32. d5 {[%emt 0:14:55]} exd5 {[%emt 0:00:
00]} 33. f5 {[%emt 0:06:10]} d4 {[%emt 0:00:39]} 34. f6+ {[%emt 0:03:43]} Kh7 {
[%emt 0:01:24]} 35. Qd2 {[%emt 0:02:02]} Qg5 {[%emt 0:01:25]} 36. Qf2 {[%emt 0:
00:00]} Bf7 {[%emt 0:00:43]} 37. Rg3 {[%emt 0:00:25]} Qc5 {[%emt 0:00:56]} 38.
Bd3 {[%emt 0:00:24]} Rde8 {[%emt 0:00:40]} 39. Qc2 {[%emt 0:00:26]} Rg8 {
[%emt 0:00:36]} 40. Qf2 {[%emt 0:01:07]} Ref8 {[%emt 0:01:52]} 41. Re1 {
[%emt 0:02:03]} Re8 {[%emt 0:02:29]} 42. Rf1 {[%emt 0:10:16]} Re3 {[%emt 0:00:
00]} 43. Rf3 {[%emt 0:03:53]} Rge8 {[%emt 0:03:51]} 44. Qh4 {[%emt 0:06:48]}
Rxf3 {[%emt 0:01:35]} 45. Rxf3 {[%emt 0:00:16]} Re3 {[%emt 0:00:14]} 46. Qg3 {
[%emt 0:04:36]} b5 {[%emt 0:12:16]} 47. cxb5 {[%emt 0:01:27]} axb5 {[%emt 0:00:
00]} 48. Kf2 {[%emt 0:01:45]} Re5 {[%emt 0:00:58]} 49. Qf4 {[%emt 0:00:40]} Qd5
{[%emt 0:01:08]} 50. Kg1 {[%emt 0:02:16]} Rg5 {[%emt 0:01:35]} 51. Rf2 {
[%emt 0:01:56]} Re5 {[%emt 0:00:26]} 52. Rf3 {[%emt 0:00:17]} Qc5 {[%emt 0:00:
00]} 53. Kf2 {[%emt 0:00:26]} Qd5 {[%emt 0:01:53]} 54. Kg1 {[%emt 0:00:20]}
Re1+ {[%emt 0:00:20]} 55. Kf2 {[%emt 0:00:33]} Re8 {[%emt 0:01:15]} 56. Rh3 {
[%emt 0:00:29]} h5 {[%emt 0:03:52]} 57. Qg4 {[%emt 0:00:55]} Re5 {[%emt 0:00:
00]} 58. Qf4 {[%emt 0:00:30]} Rg5 {[%emt 0:00:24]} 59. Be4 {[%emt 0:00:28]} Qc5
{[%emt 0:00:24]} 60. Bd3 {[%emt 0:00:17]} Re5 {[%emt 0:00:56]} 61. g4 {[%emt 0:
00:00]} Qd5 {[%emt 0:00:42]} 62. Rxh5+ {[%emt 0:00:31]} Rxh5 {[%emt 0:00:11]}
63. gxh5 {[%emt 0:00:06]} Qxh5 {[%emt 0:00:14]} 64. Qxd4 {[%emt 0:00:33]} Qh2+
{[%emt 0:00:08]} 65. Kf1 {[%emt 0:00:23]} Qh1+ {[%emt 0:00:29]} 66. Kf2 {
[%emt 0:00:11]} 1/2-1/2

[Event "44th Chess Olympiad Open 2022"]
[Site "Chennai"]
[Date "2022.07.31"]
[Round "3.68"]
[White "Xie, Felix"]
[Black "Salim Mohammed, Salim Al Amri"]
[Result "0-1"]
[WhiteElo "2224"]
[BlackElo "1917"]
[Annotator "RC"]
[PlyCount "100"]
[EventDate "2022.??.??"]
[TimeControl "60"]

1. d4 {[%emt 0:00:15]} Nf6 {[%emt 0:00:37]} 2. c4 {[%emt 0:00:43]} d6 {[%emt 0:
00:00]} 3. Nc3 {[%emt 0:00:20]} g6 {[%emt 0:00:54]} 4. e4 {[%emt 0:00:08]} Bg7
{[%emt 0:00:34]} 5. h3 {[%emt 0:01:21]} O-O {[%emt 0:00:14]} 6. Be3 {[%emt 0:
00:00]} e5 {[%emt 0:00:17]} 7. d5 {[%emt 0:00:05]} Nbd7 {[%emt 0:00:16]} 8. g4
{[%emt 0:00:06]} Nc5 {[%emt 0:00:15]} 9. f3 {[%emt 0:00:04]} a5 {[%emt 0:00:14]
} 10. h4 {[%emt 0:01:39]} h5 {[%emt 0:00:56]} 11. g5 {[%emt 0:00:04]} Nfd7 {
[%emt 0:01:52]} 12. Qd2 {[%emt 0:00:38]} Qe7 {[%emt 0:00:58]} 13. Nge2 {
[%emt 0:03:35]} Rd8 {[%emt 0:02:30]} 14. b3 {[%emt 0:03:20]} Nb6 {[%emt 0:00:
00]} 15. Nc1 {[%emt 0:04:43]} Bd7 {[%emt 0:03:08]} 16. Nd3 {[%emt 0:06:13]} Be8
{[%emt 0:00:04]} 17. Nxc5 {[%emt 0:31:25]} dxc5 {[%emt 0:00:03]} 18. Qf2 {
[%emt 0:00:01]} Bf8 {[%emt 0:00:02]} 19. Rb1 {[%emt 0:00:34]} Nc8 {[%emt 0:00:
00]} 20. Bh3 {[%emt 0:02:12]} b6 {[%emt 0:00:22]} 21. Bxc8 {[%emt 0:03:04]}
Rdxc8 {[%emt 0:00:41]} 22. Ne2 {[%emt 0:01:54]} a4 {[%emt 0:00:00]} 23. Nc1 {
[%emt 0:00:41]} axb3 {[%emt 0:00:19]} 24. axb3 {[%emt 0:00:03]} c6 {[%emt 0:00:
00]} 25. O-O {[%emt 0:05:10]} cxd5 {[%emt 0:00:16]} 26. cxd5 {[%emt 0:00:02]}
Bb5 {[%emt 0:09:16]} 27. Rd1 {[%emt 0:01:03]} Qd7 {[%emt 0:00:40]} 28. Nd3 {
[%emt 0:01:40]} Qe8 {[%emt 0:04:38]} 29. Qg3 {[%emt 0:03:26]} Bxd3 {[%emt 0:00:
00]} 30. Rxd3 {[%emt 0:00:20]} Qb5 {[%emt 0:00:06]} 31. Rbd1 {[%emt 0:09:18]}
Ra1 {[%emt 0:01:24]} 32. Rxa1 {[%emt 0:02:17]} Qxd3 {[%emt 0:03:50]} 33. Qe1 {
[%emt 0:00:01]} Rb8 {[%emt 0:04:11]} 34. Rb1 {[%emt 0:01:17]} Ra8 {[%emt 0:00:
00]} 35. Rd1 {[%emt 0:04:17]} Qxb3 {[%emt 0:04:56]} 36. Rb1 {[%emt 0:00:01]}
Qd3 {[%emt 0:00:04]} 37. Rxb6 {[%emt 0:00:07]} Ra3 {[%emt 0:00:18]} 38. Bf2 {
[%emt 0:00:50]} Qxf3 {[%emt 0:00:31]} 39. Rb8 {[%emt 0:00:58]} Rd3 {[%emt 0:00:
00]} 40. Rb1 {[%emt 0:00:58]} Qg4+ {[%emt 0:00:10]} 41. Kf1 {[%emt 0:30:01]}
Rh3 {[%emt 0:30:41]} 42. Bg1 {[%emt 0:00:07]} Rf3+ {[%emt 0:01:58]} 43. Bf2 {
[%emt 0:00:07]} Rh3 {[%emt 0:00:54]} 44. Bg1 {[%emt 0:00:06]} Rxh4 {[%emt 0:00:
00]} 45. Rb2 {[%emt 0:02:29]} Qf4+ {[%emt 0:01:13]} 46. Rf2 {[%emt 0:00:26]}
Qxe4 {[%emt 0:00:33]} 47. Re2 {[%emt 0:03:23]} Rf4+ {[%emt 0:00:17]} 48. Rf2 {
[%emt 0:00:06]} Qxd5 {[%emt 0:01:23]} 49. Bh2 {[%emt 0:01:10]} Qh1+ {[%emt 0:
00:00]} 50. Bg1 {[%emt 0:00:03]} Qh3+ {[%emt 0:00:14]} 0-1

[Event "44th Chess Olympiad Open 2022"]
[Site "Chennai"]
[Date "2022.07.31"]
[Round "3.68"]
[White "Stark, John"]
[Black "Al Kathiri, Mana"]
[Result "1/2-1/2"]
[WhiteElo "2028"]
[BlackElo "1598"]
[Annotator "RC"]
[PlyCount "223"]
[EventDate "2022.??.??"]
[TimeControl "60"]

1. b3 {[%emt 0:00:46]} d5 {[%emt 0:06:08]} 2. Bb2 {[%emt 0:00:06]} Nf6 {
[%emt 0:00:21]} 3. e3 {[%emt 0:00:11]} Bf5 {[%emt 0:00:34]} 4. Nf3 {[%emt 0:00:
00]} e6 {[%emt 0:00:25]} 5. Be2 {[%emt 0:03:15]} Be7 {[%emt 0:00:39]} 6. O-O {
[%emt 0:01:02]} h6 {[%emt 0:00:05]} 7. Ne5 {[%emt 0:02:00]} Nbd7 {[%emt 0:00:
00]} 8. f4 {[%emt 0:02:11]} c6 {[%emt 0:07:57]} 9. g4 {[%emt 0:10:38]} Bg6 {
[%emt 0:14:51]} 10. Nxg6 {[%emt 0:05:17]} fxg6 {[%emt 0:02:34]} 11. Bd3 {
[%emt 0:02:01]} Kf7 {[%emt 0:08:38]} 12. Qf3 {[%emt 0:14:18]} Nc5 {[%emt 0:00:
00]} 13. Be2 {[%emt 0:01:09]} h5 {[%emt 0:08:16]} 14. g5 Nfd7 {[%emt 0:02:21]}
15. d3 Rf8 {[%emt 0:03:04]} 16. Qh3 {[%emt 0:14:38]} Bd6 {[%emt 0:12:22]} 17.
Nd2 {[%emt 0:07:30]} Rh8 {[%emt 0:05:47]} 18. Nf3 {[%emt 0:02:20]} Qe7 {
[%emt 0:07:27]} 19. Nh4 {[%emt 0:10:51]} Nf8 {[%emt 0:01:15]} 20. Kh1 {[%emt 0:
00:00]} Re8 {[%emt 0:01:35]} 21. a4 {[%emt 0:10:43]} a5 {[%emt 0:01:22]} 22.
Rf2 {[%emt 0:00:50]} Kg8 {[%emt 0:01:12]} 23. Raf1 {[%emt 0:01:57]} b6 {
[%emt 0:00:58]} 24. Bd4 {[%emt 0:01:13]} Ncd7 {[%emt 0:01:27]} 25. Qg2 {
[%emt 0:02:34]} Bc5 {[%emt 0:01:14]} 26. Bxc5 {[%emt 0:00:30]} Qxc5 {[%emt 0:
00:00]} 27. d4 {[%emt 0:00:30]} Qxc2 {[%emt 0:00:30]} 28. f5 {[%emt 0:02:51]}
exf5 {[%emt 0:03:03]} 29. Nxf5 {[%emt 0:00:18]} Qe4 {[%emt 0:03:44]} 30. Qxe4 {
[%emt 0:02:04]} Rxe4 {[%emt 0:00:02]} 31. Bd3 {[%emt 0:00:50]} gxf5 {[%emt 0:
00:00]} 32. Bxe4 {[%emt 0:00:01]} fxe4 {[%emt 0:00:12]} 33. Rc1 {[%emt 0:00:38]
} Nb8 {[%emt 0:01:15]} 34. Rf5 {[%emt 0:00:37]} Nfd7 {[%emt 0:01:25]} 35. h4 {
[%emt 0:00:30]} g6 {[%emt 0:00:09]} 36. Rf2 {[%emt 0:00:29]} Kg7 {[%emt 0:00:
00]} 37. Rcf1 {[%emt 0:00:44]} Rf8 {[%emt 0:00:26]} 38. Kg2 {[%emt 0:00:26]}
Rxf2+ {[%emt 0:00:24]} 39. Kxf2 {[%emt 0:00:29]} Kf7 {[%emt 0:00:24]} 40. Ke2+
{[%emt 0:00:17]} Ke7 {[%emt 0:00:19]} 41. Kd2 {[%emt 0:30:39]} Na6 {[%emt 0:00:
00]} 42. Kc3 {[%emt 0:00:35]} Nb4 {[%emt 0:00:28]} 43. Rf2 {[%emt 0:00:00]} c5
{[%emt 0:00:00]} 44. Rf1 {[%emt 0:00:00]} Nc6 {[%emt 0:00:00]} 45. Rf2 {
[%emt 0:00:00]} cxd4+ {[%emt 0:00:00]} 46. exd4 {[%emt 0:00:00]} Nd8 {[%emt 0:
00:00]} 47. b4 {[%emt 0:00:00]} Nc6 {[%emt 0:00:00]} 48. bxa5 {[%emt 0:00:00]}
bxa5 {[%emt 0:00:00]} 49. Rf1 {[%emt 0:00:00]} Nb4 {[%emt 0:00:00]} 50. Kd2 {
[%emt 0:00:00]} Nc6 {[%emt 0:00:00]} 51. Kc3 {[%emt 0:00:00]} Nd8 {[%emt 0:00:
00]} 52. Rb1 {[%emt 0:00:00]} Ke6 {[%emt 0:00:00]} 53. Rb5 {[%emt 0:00:00]} Nc6
{[%emt 0:00:00]} 54. Rb7 {[%emt 0:00:00]} e3 {[%emt 0:00:00]} 55. Kd3 {[%emt 0:
00:00]} e2 {[%emt 0:00:00]} 56. Rb1 {[%emt 0:00:00]} Kf5 {[%emt 0:02:54]} 57.
Re1 {[%emt 0:00:00]} Nf8 {[%emt 0:03:06]} 58. Rxe2 {[%emt 0:00:00]} Ne6 {
[%emt 0:00:24]} 59. Rf2+ {[%emt 0:00:00]} Kg4 {[%emt 0:00:23]} 60. Rf6 {
[%emt 0:00:00]} Ncxd4 {[%emt 0:00:58]} 61. Ke3 {[%emt 0:00:00]} Kxh4 {[%emt 0:
00:00]} 62. Rxg6 {[%emt 0:00:00]} Kg3 {[%emt 0:01:01]} 63. Rf6 {[%emt 0:00:00]}
h4 {[%emt 0:01:08]} 64. g6 {[%emt 0:00:00]} h3 {[%emt 0:01:12]} 65. g7 {
[%emt 0:00:00]} Nc2+ {[%emt 0:00:52]} 66. Ke2 {[%emt 0:00:00]} Nxg7 {[%emt 0:
00:00]} 67. Rg6+ {[%emt 0:00:00]} Kf4 {[%emt 0:00:08]} 68. Rxg7 {[%emt 0:00:00]
} h2 {[%emt 0:00:44]} 69. Rh7 {[%emt 0:00:00]} Ke4 {[%emt 0:00:14]} 70. Rh4+ {
[%emt 0:00:33]} Ke5 {[%emt 0:00:07]} 71. Kd3 {[%emt 0:05:04]} Ne1+ {[%emt 0:00:
00]} 72. Ke2 {[%emt 0:00:24]} Nc2 {[%emt 0:00:13]} 73. Kd3 {[%emt 0:05:16]}
Ne1+ {[%emt 0:00:28]} 74. Ke2 {[%emt 0:00:10]} Nc2 {[%emt 0:00:08]} 75. Rxh2 {
[%emt 0:00:52]} Kd4 {[%emt 0:00:08]} 76. Kd2 {[%emt 0:00:14]} Nb4 {[%emt 0:00:
00]} 77. Rh4+ {[%emt 0:00:17]} Kc5 {[%emt 0:00:12]} 78. Kc3 {[%emt 0:01:04]}
Nc6 {[%emt 0:00:46]} 79. Rh5 {[%emt 0:01:16]} Nd4 {[%emt 0:00:36]} 80. Rh1 {
[%emt 0:01:43]} Nc6 {[%emt 0:00:14]} 81. Rh5 {[%emt 0:00:29]} Nd4 {[%emt 0:00:
00]} 82. Rh7 {[%emt 0:00:21]} Nc6 {[%emt 0:00:19]} 83. Rb7 {[%emt 0:01:10]} Kd6
{[%emt 0:00:11]} 84. Rb5 {[%emt 0:01:08]} Ke5 {[%emt 0:01:01]} 85. Kd3 {
[%emt 0:00:56]} Nb4+ {[%emt 0:01:09]} 86. Kc3 {[%emt 0:00:43]} Nc6 {[%emt 0:00:
00]} 87. Rc5 {[%emt 0:00:39]} Kd6 {[%emt 0:00:18]} 88. Rb5 {[%emt 0:00:03]} Ke5
{[%emt 0:00:09]} 89. Kd3 {[%emt 0:00:38]} Nb4+ {[%emt 0:00:39]} 90. Ke3 {
[%emt 0:00:35]} Nc6 {[%emt 0:00:07]} 91. Rb7 {[%emt 0:01:01]} Kd6 {[%emt 0:00:
00]} 92. Rb1 {[%emt 0:00:21]} Kc5 {[%emt 0:00:25]} 93. Rc1+ {[%emt 0:00:16]}
Kd6 {[%emt 0:00:10]} 94. Kd3 {[%emt 0:00:25]} Nb4+ {[%emt 0:00:21]} 95. Kd4 {
[%emt 0:00:24]} Nc6+ {[%emt 0:00:09]} 96. Ke3 {[%emt 0:00:50]} Nb4 {[%emt 0:00:
00]} 97. Rh1 {[%emt 0:00:25]} Kc5 {[%emt 0:00:53]} 98. Rc1+ {[%emt 0:00:14]}
Kd6 {[%emt 0:00:06]} 99. Kd4 {[%emt 0:00:40]} Nc6+ {[%emt 0:00:09]} 100. Kc3 {
[%emt 0:00:18]} Nb4 {[%emt 0:00:33]} 101. Rh1 {[%emt 0:00:12]} Nc6 {[%emt 0:00:
00]} 102. Rh6+ {[%emt 0:00:21]} Kc5 {[%emt 0:00:20]} 103. Rh5 {[%emt 0:00:58]}
Nb4 {[%emt 0:00:31]} 104. Rg5 {[%emt 0:00:17]} Nc6 {[%emt 0:00:02]} 105. Rg6 {
[%emt 0:00:45]} Nb4 {[%emt 0:00:02]} 106. Rg5 {[%emt 0:00:53]} Nc6 {[%emt 0:00:
00]} 107. Kb3 {[%emt 0:00:23]} Nd4+ {[%emt 0:00:06]} 108. Kc3 {[%emt 0:00:25]}
Nc6 {[%emt 0:00:03]} 109. Rg1 {[%emt 0:00:32]} Nb4 {[%emt 0:00:07]} 110. Rg5 {
[%emt 0:00:41]} Nc6 {[%emt 0:00:03]} 111. Rh5 {[%emt 0:00:29]} Nb4 {[%emt 0:00:
00]} 112. Rg5 {[%emt 0:00:31]} 1/2-1/2

[Event "44th Chess Olympiad Open 2022"]
[Site "Chennai"]
[Date "2022.07.31"]
[Round "3.68"]
[White "Al Maashani, Amer"]
[Black "Gong, Daniel Hanwen"]
[Result "0-1"]
[WhiteElo "1947"]
[BlackElo "2296"]
[Annotator "RC"]
[PlyCount "58"]
[EventDate "2022.??.??"]
[TimeControl "60"]

1. e4 {[%emt 0:00:04]} c5 {[%emt 0:00:14]} 2. c3 {[%emt 0:00:08]} d5 {[%emt 0:
00:00]} 3. exd5 {[%emt 0:00:07]} Qxd5 {[%emt 0:00:04]} 4. d4 {[%emt 0:00:06]}
e6 {[%emt 0:01:32]} 5. Nf3 {[%emt 0:00:17]} Nf6 {[%emt 0:00:06]} 6. Be2 {
[%emt 0:02:33]} Be7 {[%emt 0:00:17]} 7. O-O {[%emt 0:00:10]} O-O {[%emt 0:00:
00]} 8. Be3 {[%emt 0:01:56]} cxd4 {[%emt 0:00:05]} 9. cxd4 {[%emt 0:00:10]} Nc6
{[%emt 0:00:41]} 10. Nc3 {[%emt 0:00:12]} Qd6 {[%emt 0:07:52]} 11. Nb5 {
[%emt 0:08:19]} Qd8 {[%emt 0:00:05]} 12. Ne5 {[%emt 0:01:04]} Bd7 {[%emt 0:00:
00]} 13. a3 {[%emt 0:09:50]} Nd5 {[%emt 0:01:59]} 14. Qd2 {[%emt 0:12:29]} Be8
{[%emt 0:03:58]} 15. Nc3 {[%emt 0:03:48]} Nxe3 {[%emt 0:01:56]} 16. Qxe3 {
[%emt 0:03:57]} Nxd4 {[%emt 0:01:15]} 17. Bd3 {[%emt 0:00:53]} Nc6 {[%emt 0:00:
00]} 18. Rad1 {[%emt 0:01:18]} Qb8 {[%emt 0:08:03]} 19. Qh3 {[%emt 0:01:55]} g6
{[%emt 0:04:08]} 20. Ng4 {[%emt 0:03:46]} Ne5 {[%emt 0:05:21]} 21. Nxe5 {
[%emt 0:06:01]} Qxe5 {[%emt 0:00:07]} 22. Rfe1 {[%emt 0:00:08]} Qc7 {[%emt 0:
00:00]} 23. Ne4 {[%emt 0:03:51]} Bc6 {[%emt 0:01:19]} 24. Qh6 {[%emt 0:02:10]}
Rfd8 {[%emt 0:05:09]} 25. Ng3 {[%emt 0:11:57]} Qa5 {[%emt 0:07:38]} 26. Qe3 {
[%emt 0:08:11]} Ba4 {[%emt 0:03:42]} 27. Rc1 {[%emt 0:02:27]} Bg5 {[%emt 0:00:
00]} 28. Rc5 {[%emt 0:03:21]} Bxe3 {[%emt 0:00:23]} 29. Rxa5 {[%emt 0:00:11]}
Bd2 {[%emt 0:00:19]} 0-1

[Event "44th Chess Olympiad Open 2022"]
[Site "Chennai"]
[Date "2022.07.31"]
[Round "3.68"]
[White "Salim Issa, Ali Shamas"]
[Black "Duneas, John"]
[Result "1-0"]
[WhiteElo "1851"]
[BlackElo "2031"]
[Annotator "RC"]
[PlyCount "109"]
[EventDate "2022.??.??"]
[TimeControl "60"]

1. d4 {[%emt 0:02:27]} d5 {[%emt 0:00:29]} 2. c4 {[%emt 0:00:29]} c6 {[%emt 0:
00:00]} 3. Nc3 {[%emt 0:00:09]} Nf6 {[%emt 0:00:09]} 4. e3 {[%emt 0:00:23]} e6
{[%emt 0:02:11]} 5. Nf3 {[%emt 0:00:17]} Bd6 {[%emt 0:01:12]} 6. Bd3 {[%emt 0:
00:00]} O-O {[%emt 0:00:20]} 7. O-O {[%emt 0:00:06]} Nbd7 {[%emt 0:01:23]} 8.
Qc2 {[%emt 0:00:27]} e5 {[%emt 0:07:26]} 9. cxd5 {[%emt 0:00:54]} cxd5 {
[%emt 0:00:43]} 10. dxe5 {[%emt 0:02:28]} Nxe5 {[%emt 0:03:36]} 11. Be2 {
[%emt 0:00:14]} Nc6 {[%emt 0:09:04]} 12. a3 {[%emt 0:01:01]} Qe7 {[%emt 0:00:
00]} 13. Rd1 {[%emt 0:00:46]} Rd8 {[%emt 0:00:24]} 14. b4 {[%emt 0:00:41]} h6 {
[%emt 0:10:16]} 15. Bb2 {[%emt 0:05:53]} a6 {[%emt 0:03:28]} 16. Na4 {[%emt 0:
00:00]} Bc7 {[%emt 0:02:53]} 17. Rac1 {[%emt 0:00:38]} Ne4 {[%emt 0:04:03]} 18.
Nc5 {[%emt 0:00:33]} Nxc5 {[%emt 0:04:19]} 19. Qxc5 {[%emt 0:00:12]} Qxc5 {
[%emt 0:03:00]} 20. Rxc5 {[%emt 0:03:12]} Be6 {[%emt 0:00:16]} 21. Nd4 {
[%emt 0:01:09]} Nxd4 {[%emt 0:01:12]} 22. Bxd4 {[%emt 0:01:58]} Bd6 {[%emt 0:
00:00]} 23. Rcc1 {[%emt 0:00:20]} Rdc8 {[%emt 0:06:28]} 24. Bf3 {[%emt 0:07:52]
} a5 {[%emt 0:02:30]} 25. Bc5 {[%emt 0:01:05]} Be5 {[%emt 0:01:38]} 26. bxa5 {
[%emt 0:01:27]} Rxa5 {[%emt 0:01:45]} 27. Bb4 {[%emt 0:00:13]} Rxc1 {[%emt 0:
00:00]} 28. Rxc1 {[%emt 0:00:34]} Ra6 {[%emt 0:00:54]} 29. Rd1 {[%emt 0:01:01]}
Bb2 {[%emt 0:05:10]} 30. Rd3 {[%emt 0:02:00]} Ra8 {[%emt 0:02:47]} 31. g4 {
[%emt 0:02:33]} f6 {[%emt 0:00:49]} 32. h3 {[%emt 0:00:42]} Rd8 {[%emt 0:02:30]
} 33. Kg2 {[%emt 0:00:52]} Kf7 {[%emt 0:00:31]} 34. Bc5 {[%emt 0:00:30]} Rd7 {
[%emt 0:02:51]} 35. Bd1 {[%emt 0:03:16]} Rc7 {[%emt 0:04:22]} 36. Bb4 {[%emt 0:
00:00]} f5 {[%emt 0:01:22]} 37. f3 {[%emt 0:02:01]} fxg4 {[%emt 0:00:18]} 38.
hxg4 {[%emt 0:00:26]} b6 {[%emt 0:02:06]} 39. f4 {[%emt 0:00:49]} g6 {[%emt 0:
00:00]} 40. Kg3 {[%emt 0:01:26]} Bf6 {[%emt 0:01:15]} 41. Bb3 {[%emt 0:31:16]}
Rd7 {[%emt 0:33:45]} 42. e4 {[%emt 0:02:34]} d4 {[%emt 0:00:00]} 43. e5 {
[%emt 0:00:00]} Bxb3 {[%emt 0:00:00]} 44. Rxb3 {[%emt 0:00:00]} Be7 {[%emt 0:
00:00]} 45. Bd2 {[%emt 0:00:00]} Bc5 {[%emt 0:00:00]} 46. f5 {[%emt 0:00:00]}
Rd5 {[%emt 0:00:00]} 47. Kf4 {[%emt 0:00:00]} d3 {[%emt 0:00:00]} 48. e6+ {
[%emt 0:00:00]} Ke7 {[%emt 0:00:00]} 49. Ke4 {[%emt 0:00:00]} Rd4+ {[%emt 0:00:
00]} 50. Ke5 {[%emt 0:00:00]} g5 {[%emt 0:00:00]} 51. f6+ {[%emt 0:00:00]} Kf8
{[%emt 0:00:00]} 52. Kf5 {[%emt 0:00:00]} Rd6 {[%emt 0:01:04]} 53. a4 {[%emt 0:
00:00]} Bf2 {[%emt 0:01:26]} 54. Bb4 {[%emt 0:00:00]} Bc5 {[%emt 0:00:09]} 55.
Bxc5 {[%emt 0:00:00]} 1-0